bitfinex/quotes_BTCUSD_20240821
["timestamp","ask_amount","ask_price","bid_price","bid_amount"]
[1724272017775,0.325379,61467.0,61456.0,0.162716]
[1724272017776,0.3223,61466.0,61456.0,0.162716]
[1724272017952,0.3223,61466.0,61453.0,0.25549868]
[1724272017953,0.3233,61466.0,61453.0,0.25549868]
[1724272018155,0.003,61462.0,61454.0,0.0387991]
[1724272018405,0.002,61457.0,61455.0,0.32672198]
[1724272018610,0.003,61464.0,61456.0,0.162717]
[1724272018804,0.005,61457.0,61456.0,0.27436021]
[1724272019128,0.005,61457.0,61456.0,0.11164321]
[1724272019419,0.001,61461.0,61456.0,0.11164321]
[1724272019627,0.003,61461.0,61457.0,0.08993681]
[1724272020038,0.003,61456.0,61455.0,0.001]
[1724272021046,0.192,61458.0,61449.0,0.162735]
[1724272021047,0.001,61458.0,61449.0,0.162735]
[1724272021249,0.001,61453.0,61450.0,0.0678828]
[1724272021422,0.003,61451.0,61450.0,0.0678828]
[1724272021625,0.001,61446.0,61440.0,0.3184]
[1724272021831,0.001,61446.0,61441.0,0.1]
[1724272021832,0.003,61446.0,61441.0,0.1]
[1724272021984,0.003,61446.0,61442.0,0.0868664]
[1724272022651,0.003,61445.0,61442.0,0.0868664]
[1724272023900,0.001,61446.0,61442.0,0.0868664]
[1724272024077,0.001,61446.0,61442.0,0.0888664]
[1724272024278,0.001,61445.0,61443.0,0.07575284]
[1724272024484,0.003,61444.0,61443.0,0.07575284]
[1724272024850,0.001,61445.0,61439.0,0.1]
[1724272025053,0.003,61446.0,61442.0,0.002]
[1724272025432,0.004,61446.0,61440.0,0.0597403]
[1724272025929,0.004,61446.0,61443.0,0.002]
[1724272025930,0.001,61444.0,61443.0,0.002]
[1724272027036,0.306,61445.0,61437.0,0.162767]
[1724272027187,0.306,61445.0,61438.0,0.0822961]
[1724272027394,0.003,61442.0,61440.0,0.002]
[1724272027595,0.003,61443.0,61440.0,0.002]
[1724272027796,0.003,61445.0,61441.0,0.04119737]
[1724272028052,0.001,61444.0,61441.0,0.04119737]
[1724272028219,0.303,61449.0,61440.0,0.3309]
[1724272028220,0.303,61449.0,61442.0,0.04511711]
[1724272029260,0.303,61449.0,61443.0,0.00325118]
[1724272029670,0.306,61449.0,61443.0,0.00325118]
[1724272029879,0.3177,61453.0,61444.0,0.40230571]
[1724272030082,0.000826,61458.0,61452.0,0.162727]
[1724272030327,0.3177,61457.0,61453.0,0.0493627]
[1724272030518,0.003,61455.0,61449.0,0.162735]
[1724272030721,0.003,61455.0,61449.0,0.32673798]
[1724272030839,0.003,61455.0,61450.0,0.0977716]
[1724272031260,0.001,61451.0,61450.0,0.0977716]
[1724272031458,0.003,61451.0,61445.0,0.325493]
[1724272031829,0.003,61451.0,61444.0,0.23830273]
[1724272031830,0.003,61452.0,61446.0,0.32674498]
[1724272032032,0.006,61455.0,61447.0,0.08905487]
[1724272032224,0.003,61453.0,61447.0,0.08905487]
[1724272032389,0.003,61449.0,61444.0,0.05440273]
[1724272033076,0.003,61449.0,61438.0,0.0009086]
[1724272033077,0.509463,61439.0,61438.0,0.0009086]
[1724272033286,0.3417,61439.0,61438.0,0.0009086]
[1724272033459,0.322,61448.0,61438.0,0.16491158]
[1724272033664,0.322,61448.0,61441.0,0.162756]
[1724272033896,0.322,61448.0,61442.0,0.16400298]
[1724272034102,0.001,61446.0,61440.0,0.16400298]
[1724272034307,0.001,61446.0,61441.0,0.06706124]
[1724272034491,0.001,61443.0,61441.0,0.06706124]
[1724272034636,0.003,61443.0,61441.0,0.06706124]
[1724272034835,0.003,61442.0,61441.0,0.001]
[1724272035058,0.839789,61439.0,61438.0,0.0009086]
[1724272035260,1.52421798,61439.0,61438.0,0.0009086]
[1724272035466,1.84974398,61439.0,61438.0,0.0009086]
[1724272035914,0.5414,61420.0,61415.0,1.5]
[1724272036116,0.002,61425.0,61415.0,1.5]
[1724272036117,0.3465,61422.0,61415.0,1.66400298]
[1724272036358,0.003,61417.0,61416.0,0.16397878]
[1724272036559,0.001,61421.0,61416.0,0.16397878]
[1724272036708,0.003,61421.0,61416.0,0.16397878]
[1724272036914,0.003,61421.0,61417.0,0.1097449]
[1724272036915,0.001,61419.0,61417.0,0.1097449]
[1724272037336,0.3465,61422.0,61417.0,0.1097449]
[1724272037538,0.1989,61425.0,61417.0,0.1097449]
[1724272037539,0.003,61425.0,61417.0,0.1097449]
[1724272037699,0.3342,61427.0,61418.0,0.16309537]
[1724272037893,0.3342,61427.0,61418.0,0.16635124]
[1724272038120,0.3342,61427.0,61419.0,0.16400298]
[1724272038121,0.3352,61427.0,61419.0,0.16400298]
[1724272038322,0.3372,61427.0,61420.0,0.11388407]
[1724272038717,0.001,61421.0,61420.0,0.11062831]
[1724272038932,0.3392,61427.0,61420.0,0.11062831]
[1724272039136,0.003,61423.0,61421.0,0.01226283]
[1724272039335,0.004,61423.0,61421.0,0.01226283]
[1724272039576,0.0046082,61423.0,61421.0,0.01226283]
[1724272039898,0.001,61422.0,61421.0,0.01226283]
[1724272040180,0.0046082,61423.0,61421.0,0.01226283]
[1724272040381,0.003,61422.0,61420.0,0.11062831]
[1724272040922,0.003,61422.0,61421.0,0.002]
[1724272041130,0.001,61422.0,61421.0,0.007]
[1724272041346,0.0046082,61423.0,61421.0,0.01385369]
[1724272041548,0.003,61422.0,61421.0,0.01385369]
[1724272041977,0.003,61422.0,61421.0,0.01185369]
[1724272042751,0.003,61421.0,61420.0,0.005]
[1724272042956,0.003,61417.0,61416.0,0.0009086]
[1724272043103,0.003,61417.0,61416.0,0.15493864]
[1724272043489,0.003,61417.0,61415.0,1.5]
[1724272043490,0.6559042,61416.0,61415.0,1.10513864]
[1724272043739,1.64257918,61416.0,61415.0,1.10513864]
[1724272044302,1.96822718,61416.0,61415.0,0.66555193]
[1724272044524,1.99122718,61416.0,61415.0,0.66555193]
[1724272045127,0.003,61416.0,61415.0,0.66555193]
[1724272045471,0.002,61417.0,61416.0,0.325648]
[1724272045623,0.002,61417.0,61416.0,0.23449735]
[1724272046004,0.002,61417.0,61416.0,0.39732135]
[1724272046268,0.001,61425.0,61419.0,0.162816]
[1724272046495,0.001,61422.0,61420.0,0.04623663]
[1724272046665,0.014,61416.0,61415.0,0.66655193]
[1724272046863,0.003,61419.0,61415.0,0.66555193]
[1724272047166,0.012,61416.0,61415.0,0.66555193]
[1724272047300,0.003,61421.0,61415.0,0.66555193]
[1724272047499,0.003,61420.0,61416.0,0.003]
[1724272047712,0.007,61422.0,61415.0,0.66555193]
[1724272047933,0.004,61422.0,61416.0,0.07049437]
[1724272048617,0.001,61420.0,61416.0,0.07049437]
[1724272048798,0.001,61420.0,61415.0,0.82955491]
[1724272048799,0.003,61419.0,61415.0,0.66555193]
[1724272049007,0.003,61417.0,61415.0,0.66655193]
[1724272049378,0.325604,61425.0,61415.0,0.66555193]
[1724272049379,0.5104322,61416.0,61415.0,0.66555193]
[1724272050079,0.8360802,61416.0,61415.0,0.66555193]
[1724272050286,1.0220802,61416.0,61415.0,0.66855193]
[1724272050483,1.3477282,61416.0,61415.0,0.66555193]
[1724272050851,1.6733762,61416.0,61415.0,0.67255193]
[1724272051096,1.3477282,61416.0,61415.0,0.67255193]
[1724272051558,1.3477282,61416.0,61415.0,0.66955193]
[1724272051724,1.3597282,61416.0,61415.0,0.66955193]
[1724272052102,0.3586082,61416.0,61415.0,0.7364463]
[1724272052302,0.3596082,61416.0,61415.0,0.7384463]
[1724272052557,0.35863316,61416.0,61415.0,0.7384463]
[1724272052728,0.01463316,61416.0,61415.0,0.7364463]
[1724272052926,0.02563316,61416.0,61415.0,0.7374463]
[1724272053357,0.01463316,61416.0,61415.0,0.7364463]
[1724272053555,0.01463316,61416.0,61415.0,0.7374463]
[1724272053556,0.02563316,61416.0,61415.0,0.7374463]
[1724272053878,0.01363316,61416.0,61415.0,0.7364463]
[1724272054096,0.02563316,61416.0,61415.0,0.7364463]
[1724272054497,0.01363316,61416.0,61415.0,0.7364463]
[1724272054905,0.02263316,61416.0,61415.0,0.7364463]
[1724272055108,0.03263316,61416.0,61415.0,0.66655193]
[1724272055520,0.01163316,61416.0,61415.0,0.66555193]
[1724272055869,0.01963316,61416.0,61415.0,0.66655193]
[1724272056121,0.18245716,61416.0,61415.0,0.66655193]
[1724272056484,1.15086136,61416.0,61415.0,0.66655193]
[1724272056939,1.47650936,61416.0,61415.0,0.66655193]
[1724272057306,1.46750936,61416.0,61415.0,0.66655193]
[1724272057890,1.46750936,61416.0,61415.0,0.66755193]
[1724272057891,1.47750936,61416.0,61415.0,0.66755193]
[1724272058317,1.46950936,61416.0,61415.0,0.66655193]
[1724272058553,1.64151234,61416.0,61415.0,0.66755193]
[1724272059017,2.18706034,61416.0,61415.0,0.64799474]
[1724272059436,1.83841234,61416.0,61415.0,0.64799474]
[1724272059619,1.83841234,61416.0,61414.0,0.009097]
[1724272059620,1.16197535,61415.0,61414.0,0.009097]
[1724272059826,1.32697833,61415.0,61414.0,0.009097]
[1724272060171,1.32758653,61415.0,61414.0,0.009097]
[1724272061138,1.34158653,61415.0,61414.0,0.009097]
[1724272061565,1.32758653,61415.0,61414.0,0.009097]
[1724272061785,1.36458653,61415.0,61414.0,0.009097]
[1724272062372,1.37858653,61415.0,61414.0,0.009097]
[1724272062676,1.36458653,61415.0,61414.0,0.009097]
[1724272062901,1.37858653,61415.0,61414.0,0.009097]
[1724272063100,0.86593055,61415.0,61414.0,0.009097]
[1724272063506,0.03619035,61415.0,61414.0,0.009097]
[1724272063921,0.05019035,61415.0,61414.0,0.04479618]
[1724272064091,0.05019035,61415.0,61414.0,0.009097]
[1724272064496,0.03619035,61415.0,61414.0,0.009097]
[1724272064674,0.19301635,61415.0,61414.0,0.009097]
[1724272064877,0.00263316,61410.0,61409.0,0.3069918]
[1724272065062,0.00263316,61410.0,61409.0,0.36443052]
[1724272065884,0.00263316,61412.0,61409.0,0.36443052]
[1724272066091,0.001,61410.0,61409.0,0.36443052]
[1724272066992,0.004,61410.0,61409.0,0.36443052]
[1724272067925,0.004,61410.0,61409.0,1.3426455]
[1724272068118,0.001,61410.0,61409.0,2.6762455]
[1724272068392,0.002,61410.0,61409.0,2.6762455]
[1724272068593,0.002,61410.0,61409.0,2.7762455]
[1724272068836,0.002,61410.0,61409.0,2.7772455]
[1724272069262,0.002,61410.0,61409.0,2.7762455]
[1724272069478,0.002,61410.0,61409.0,1.5455605]
[1724272069681,0.001,61410.0,61409.0,1.0318755]
[1724272069899,0.001,61410.0,61409.0,0.7100335]
[1724272070104,0.002,61410.0,61409.0,0.8728755]
[1724272070509,0.001,61410.0,61409.0,0.8728755]
[1724272070908,0.002,61410.0,61409.0,0.8728755]
[1724272071134,0.001,61410.0,61409.0,0.8718755]
[1724272071344,0.02219035,61415.0,61409.0,0.8718755]
[1724272071552,0.002,61410.0,61409.0,0.6504338]
[1724272071768,0.001,61410.0,61409.0,0.4875918]
[1724272072175,0.002,61410.0,61409.0,0.4875918]
[1724272072302,0.001,61410.0,61409.0,0.6504338]
[1724272072514,0.001,61410.0,61409.0,0.7671648]
[1724272072741,0.001,61410.0,61409.0,0.6043228]
[1724272073070,0.00263316,61411.0,61409.0,0.65159478]
[1724272073275,0.001,61410.0,61409.0,0.4875918]
[1724272074201,0.002,61410.0,61409.0,0.4875918]
[1724272074430,0.001,61410.0,61409.0,0.7240889]
[1724272074787,0.002,61410.0,61409.0,0.7240889]
[1724272075330,0.003,61410.0,61409.0,0.7240889]
[1724272075543,0.003,61410.0,61409.0,0.56008592]
[1724272075953,0.003,61410.0,61409.0,0.25309412]
[1724272076075,0.003,61410.0,61409.0,0.07249412]
[1724272076699,0.003,61410.0,61409.0,0.07340382]
[1724272076939,0.00363316,61410.0,61409.0,0.04420382]
[1724272077280,0.00646016,61410.0,61409.0,0.04420382]
[1724272078391,0.003827,61410.0,61409.0,0.04420382]
[1724272078800,0.003827,61410.0,61409.0,0.0009097]
[1724272078801,0.82026536,61410.0,61409.0,0.0009097]
[1724272079001,1.14794436,61410.0,61409.0,0.0009097]
[1724272080002,1.14694436,61410.0,61409.0,0.0009097]
[1724272080706,1.14494436,61410.0,61409.0,0.00090946]
[1724272080920,1.18047574,61410.0,61409.0,0.00090946]
[1724272082373,1.17947574,61410.0,61409.0,0.00090946]
[1724272082520,1.18947574,61410.0,61409.0,0.00090946]
[1724272082725,1.35347872,61410.0,61409.0,0.00090946]
[1724272082933,1.65637872,61410.0,61409.0,0.00090946]
[1724272083347,1.65637872,61410.0,61407.0,0.065194]
[1724272083348,1.31856636,61408.0,61407.0,0.065194]
[1724272083525,2.51634934,61408.0,61407.0,0.065194]
[1724272083926,2.58808538,61408.0,61407.0,0.065194]
[1724272084157,2.53934934,61408.0,61407.0,0.065194]
[1724272084390,2.70332812,61408.0,61407.0,0.065194]
[1724272084849,2.71732812,61408.0,61407.0,0.065194]
[1724272085355,1.66711836,61405.0,61404.0,0.00021539]
[1724272085602,2.23402134,61405.0,61404.0,0.00021539]
[1724272086088,2.25702134,61405.0,61404.0,0.00021539]
[1724272086318,2.33008194,61405.0,61404.0,0.00021539]
[1724272086550,2.25702134,61405.0,61404.0,0.00021539]
[1724272086778,1.48131415,61405.0,61404.0,0.00021539]
[1724272087023,1.43260636,61405.0,61404.0,0.00021539]
[1724272087294,0.04870779,61407.0,61404.0,0.00021539]
[1724272087522,0.02635838,61410.0,61405.0,0.4964]
[1724272087743,0.02635838,61410.0,61406.0,0.06606184]
[1724272088015,0.014,61408.0,61406.0,0.06606184]
[1724272088232,0.000827,61410.0,61406.0,0.23006482]
[1724272088464,0.00146016,61410.0,61407.0,0.02146916]
[1724272088699,0.000827,61410.0,61407.0,0.02146916]
[1724272088922,0.16348616,61405.0,61404.0,0.00021539]
[1724272089155,1.02590036,61405.0,61404.0,0.00021539]
[1724272089405,1.35160636,61405.0,61404.0,0.00021539]
[1724272089707,1.17964083,61405.0,61404.0,0.00021539]
[1724272089945,1.17964083,61405.0,61404.0,0.00112509]
[1724272090684,0.19262883,61405.0,61404.0,0.00112509]
[1724272090904,0.02816763,61405.0,61404.0,0.00112509]
[1724272091142,0.02816763,61405.0,61404.0,0.03569824]
[1724272091338,0.02816763,61405.0,61404.0,0.23109824]
[1724272091339,0.03853447,61405.0,61404.0,0.23109824]
[1724272091489,0.03853447,61405.0,61404.0,0.39395324]
[1724272091490,0.02553447,61405.0,61404.0,0.39395324]
[1724272091695,0.02553447,61405.0,61404.0,0.88366722]
[1724272091899,0.04653447,61405.0,61404.0,0.88366722]
[1724272092060,0.03653447,61405.0,61404.0,0.88366722]
[1724272092482,0.02953447,61405.0,61404.0,0.88366722]
[1724272092683,0.03353447,61405.0,61404.0,0.88366722]
[1724272093158,0.02953447,61405.0,61404.0,0.73310122]
[1724272093586,0.03016763,61405.0,61404.0,0.73310122]
[1724272093762,0.03216763,61405.0,61404.0,0.73310122]
[1724272093897,0.02816763,61405.0,61404.0,0.73310122]
[1724272094100,0.02816763,61405.0,61404.0,0.57009824]
[1724272094392,0.02816763,61405.0,61404.0,0.23209824]
[1724272094599,0.02816763,61405.0,61404.0,0.23109824]
[1724272094600,0.02553447,61405.0,61404.0,0.23109824]
[1724272094780,0.65256898,61404.0,61400.0,0.3398064]
[1724272095157,0.65320214,61404.0,61400.0,0.3398064]
[1724272095360,0.00263316,61401.0,61400.0,0.3398064]
[1724272095565,0.00263316,61401.0,61400.0,0.0066064]
[1724272096820,0.34294136,61401.0,61400.0,0.0066064]
[1724272097021,0.83153136,61401.0,61400.0,0.0076064]
[1724272097280,1.15725836,61401.0,61400.0,0.0066064]
[1724272097657,1.15825836,61401.0,61400.0,0.0076064]
[1724272097872,0.00463316,61401.0,61400.0,0.0076064]
[1724272098163,0.00463316,61401.0,61400.0,0.0066064]
[1724272098164,0.00163316,61401.0,61400.0,0.0066064]
[1724272098392,0.01263316,61401.0,61400.0,0.0066064]
[1724272098593,0.00263316,61401.0,61400.0,0.0066064]
[1724272098815,0.01363316,61401.0,61400.0,0.0066064]
[1724272098978,0.02363316,61401.0,61400.0,0.0066064]
[1724272099180,0.01263316,61401.0,61400.0,0.0066064]
[1724272099532,0.01963316,61401.0,61400.0,0.0066064]
[1724272099732,0.50983136,61401.0,61400.0,0.0066064]
[1724272100041,0.83555836,61401.0,61400.0,0.0066064]
[1724272100187,1.01885836,61401.0,61400.0,0.0066064]
[1724272100388,1.68328536,61401.0,61400.0,0.0066064]
[1724272100592,1.68928536,61401.0,61400.0,0.0066064]
[1724272100815,1.67628536,61401.0,61400.0,0.0066064]
[1724272100999,1.68328536,61401.0,61400.0,0.0066064]
[1724272101199,1.36755836,61401.0,61400.0,0.0066064]
[1724272101605,1.36055836,61401.0,61400.0,0.0066064]
[1724272101919,1.36155836,61401.0,61400.0,0.0066064]
[1724272102355,1.35055836,61401.0,61400.0,0.0075161]
[1724272102633,0.69910436,61401.0,61400.0,0.0075161]
[1724272102834,0.01524136,61401.0,61400.0,0.0075161]
[1724272103040,0.01463316,61401.0,61400.0,0.0075161]
[1724272103233,0.02363316,61401.0,61400.0,0.0075161]
[1724272103682,0.01363316,61401.0,61400.0,0.0075161]
[1724272103885,0.01263316,61401.0,61400.0,0.0075161]
[1724272104093,0.01224117,61401.0,61400.0,0.0075161]
[1724272104298,0.83916637,61401.0,61400.0,0.0075161]
[1724272104499,0.84616637,61401.0,61400.0,0.0075161]
[1724272104690,0.83516637,61401.0,61400.0,0.0075161]
[1724272104977,0.51743937,61401.0,61400.0,0.0075161]
[1724272106264,0.84316637,61401.0,61400.0,0.0075161]
[1724272106419,0.84316637,61401.0,61400.0,0.0085161]
[1724272106618,0.51743937,61401.0,61400.0,0.0085161]
[1724272107457,0.84316637,61401.0,61400.0,0.0085161]
[1724272107668,0.51743937,61401.0,61400.0,0.0085161]
[1724272108059,1.03273937,61401.0,61400.0,0.0085161]
[1724272108224,1.35846637,61401.0,61400.0,0.0085161]
[1724272108835,1.68419337,61401.0,61400.0,0.0085161]
[1724272109265,2.17392335,61401.0,61400.0,0.0085161]
[1724272109463,2.29692335,61401.0,61400.0,0.0085161]
[1724272110243,2.28031534,61401.0,61400.0,0.0085161]
[1724272110501,2.06471042,61401.0,61400.0,0.0085161]
[1724272110869,2.28050133,61401.0,61400.0,0.0085161]
[1724272111099,2.40286996,61401.0,61400.0,0.0085161]
[1724272111305,2.41686996,61401.0,61400.0,0.0085161]
[1724272111514,2.09114296,61401.0,61400.0,0.0085161]
[1724272111724,1.87552132,61401.0,61400.0,0.0085161]
[1724272111940,1.44785836,61401.0,61400.0,0.0085161]
[1724272112209,0.01663316,61401.0,61400.0,0.0085161]
[1724272112415,0.03063316,61401.0,61400.0,0.0085161]
[1724272112652,0.01663316,61401.0,61400.0,0.0085161]
[1724272112859,0.01663316,61401.0,61400.0,0.04324771]
[1724272113069,0.03063316,61401.0,61400.0,0.04324771]
[1724272113242,0.01663316,61401.0,61400.0,0.04324771]
[1724272113711,1.13085836,61401.0,61400.0,0.0085161]
[1724272113914,1.82138834,61401.0,61400.0,0.0085161]
[1724272114094,1.66638536,61401.0,61400.0,0.0075161]
[1724272114320,1.65738536,61401.0,61400.0,0.0075161]
[1724272114521,1.80738834,61401.0,61400.0,0.0075161]
[1724272114725,1.82438834,61401.0,61400.0,0.0075161]
[1724272114933,1.92438834,61401.0,61400.0,0.0084258]
[1724272115285,1.91538834,61401.0,61400.0,0.0084258]
[1724272115477,1.92938834,61401.0,61400.0,0.0084258]
[1724272116101,1.92138834,61401.0,61400.0,0.0084258]
[1724272116461,1.93438834,61401.0,61400.0,0.0084258]
[1724272116658,1.54255836,61401.0,61400.0,0.0084258]
[1724272116879,1.21625836,61401.0,61400.0,0.0084258]
[1724272117083,0.04363316,61401.0,61400.0,0.0084258]
[1724272117322,0.01663316,61401.0,61400.0,0.02905838]
[1724272117508,0.00263316,61401.0,61400.0,0.02905838]
[1724272117811,0.02963316,61401.0,61400.0,0.02905838]
[1724272118040,0.02963316,61401.0,61400.0,0.0084258]
[1724272118219,0.51883136,61401.0,61400.0,0.0084258]
[1724272118446,1.42945836,61401.0,61400.0,0.0084258]
[1724272118653,1.11225836,61401.0,61400.0,0.0084258]
[1724272119028,0.78653136,61401.0,61400.0,0.0084258]
[1724272119454,1.11225836,61401.0,61400.0,0.0084258]
[1724272119634,0.01163316,61401.0,61400.0,0.0084258]
[1724272119836,0.01224136,61401.0,61400.0,0.0084258]
[1724272119990,0.18610436,61401.0,61400.0,0.0084258]
[1724272120307,0.50183136,61401.0,61400.0,0.0084258]
[1724272120508,0.49283136,61401.0,61400.0,0.0084258]
[1724272120705,0.50083136,61401.0,61400.0,0.0084258]
[1724272121247,0.50783136,61401.0,61400.0,0.0084258]
[1724272121441,0.51783136,61401.0,61400.0,0.0084258]
[1724272121644,0.80253136,61401.0,61400.0,0.0084258]
[1724272122019,0.77753136,61401.0,61400.0,0.0084258]
[1724272122369,0.78553136,61401.0,61400.0,0.0084258]
[1724272122600,0.17510436,61401.0,61400.0,0.0084258]
[1724272122984,0.78553136,61401.0,61400.0,0.0084258]
[1724272123179,1.11193136,61401.0,61400.0,0.0084258]
[1724272123586,1.44465836,61401.0,61400.0,0.0084258]
[1724272123814,1.43765836,61401.0,61400.0,0.0084258]
[1724272123977,2.11688834,61401.0,61400.0,0.0084258]
[1724272124166,2.12388834,61401.0,61400.0,0.0084258]
[1724272124363,2.12488834,61401.0,61400.0,0.0084258]
[1724272124763,2.17361855,61401.0,61400.0,0.0084258]
[1724272124972,2.17961855,61401.0,61400.0,0.0084258]
[1724272125193,2.17361855,61401.0,61400.0,0.0084258]
[1724272126613,2.18061855,61401.0,61400.0,0.0084258]
[1724272126817,2.17361855,61401.0,61400.0,0.0084258]
[1724272127021,2.12488834,61401.0,61400.0,0.0084258]
[1724272127218,2.13888834,61401.0,61400.0,0.0084258]
[1724272127583,2.13088834,61401.0,61400.0,0.0084258]
[1724272127781,1.13208436,61401.0,61400.0,0.0084258]
[1724272128005,0.52065736,61401.0,61400.0,0.0084258]
[1724272128542,0.50765736,61401.0,61400.0,0.0084258]
[1724272128719,0.52165736,61401.0,61400.0,0.0084258]
[1724272128922,0.53565736,61401.0,61400.0,0.0084258]
[1724272129240,0.86138436,61401.0,61400.0,0.0084258]
[1724272129441,0.94930674,61401.0,61400.0,0.0084258]
[1724272129894,0.96230674,61401.0,61400.0,0.0084258]
[1724272130111,0.93430674,61401.0,61400.0,0.0084258]
[1724272130431,2.78477271,61401.0,61400.0,0.0084258]
[1724272130634,2.43143203,61401.0,61400.0,0.0084258]
[1724272130838,2.43943203,61401.0,61400.0,0.0084258]
[1724272131035,2.21893203,61401.0,61400.0,0.0084258]
[1724272131251,1.69713374,61401.0,61400.0,0.0084258]
[1724272131460,1.68413374,61401.0,61400.0,0.0084258]
[1724272131670,1.67613374,61401.0,61400.0,0.0084258]
[1724272131873,1.68513374,61401.0,61400.0,0.0084258]
[1724272132073,1.69613374,61401.0,61400.0,0.0084258]
[1724272132275,1.68713374,61401.0,61400.0,0.0084258]
[1724272132485,1.89989754,61401.0,61400.0,0.0084258]
[1724272132692,1.91390257,61401.0,61400.0,0.0084258]
[1724272133209,1.86513672,61401.0,61400.0,0.0084258]
[1724272133409,1.85113672,61401.0,61400.0,0.0084258]
[1724272133608,2.18460178,61401.0,61400.0,0.0084258]
[1724272133807,2.17360178,61401.0,61400.0,0.0084258]
[1724272134121,2.18660178,61401.0,61400.0,0.0084258]
[1724272134329,2.13783672,61401.0,61400.0,0.0084258]
[1724272134535,2.12483672,61401.0,61400.0,0.0084258]
[1724272134664,2.13583672,61401.0,61400.0,0.0084258]
[1724272134874,2.12483672,61401.0,61400.0,0.0084258]
[1724272135268,1.55525698,61401.0,61400.0,0.0084258]
[1724272135482,1.70511998,61401.0,61400.0,0.0084258]
[1724272135679,2.01784698,61401.0,61400.0,0.0084258]
[1724272136102,2.03184698,61401.0,61400.0,0.0084258]
[1724272136725,2.01784698,61401.0,61400.0,0.0084258]
[1724272136902,2.04584698,61401.0,61400.0,0.0084258]
[1724272137080,2.03184698,61401.0,61400.0,0.0084258]
[1724272137486,2.04484698,61401.0,61400.0,0.0084258]
[1724272137730,2.03184698,61401.0,61400.0,0.0084258]
[1724272138042,2.04584698,61401.0,61400.0,0.0084258]
[1724272138456,2.03184698,61401.0,61400.0,0.0084258]
[1724272138648,2.04584698,61401.0,61400.0,0.0084258]
[1724272139311,2.08062549,61401.0,61400.0,0.0084258]
[1724272139483,0.942317,61401.0,61400.0,0.0084258]
[1724272139915,1.268044,61401.0,61400.0,0.0084258]
[1724272140119,1.254044,61401.0,61400.0,0.0084258]
[1724272140264,1.28882251,61401.0,61400.0,0.0084258]
[1724272140677,1.30364851,61401.0,61400.0,0.0084258]
[1724272140874,1.25487,61401.0,61400.0,0.0084258]
[1724272141961,0.943143,61401.0,61400.0,0.0084258]
[1724272142162,1.01641039,61401.0,61400.0,0.0084258]
[1724272142365,1.50614037,61401.0,61400.0,0.0084258]
[1724272142613,1.43287298,61401.0,61400.0,0.0084258]
[1724272143021,1.41887298,61401.0,61400.0,0.0084258]
[1724272143220,1.43287298,61401.0,61400.0,0.0084258]
[1724272143621,1.41887298,61401.0,61400.0,0.0084258]
[1724272144031,1.43287298,61401.0,61400.0,0.0084258]
[1724272145368,1.53480796,61401.0,61400.0,0.0084258]
[1724272146325,1.85880796,61401.0,61400.0,0.0084258]
[1724272147385,1.53480796,61401.0,61400.0,0.0084258]
[1724272147621,1.65691055,61401.0,61400.0,0.0084258]
[1724272148354,1.53480796,61401.0,61400.0,0.0084258]
[1724272149071,1.65691055,61401.0,61400.0,0.0084258]
[1724272149896,1.20908096,61401.0,61400.0,0.0084258]
[1724272150332,1.53480796,61401.0,61400.0,0.0084258]
[1724272150554,1.20908096,61401.0,61400.0,0.0084258]
[1724272150754,1.85880796,61401.0,61400.0,0.0084258]
[1724272150960,1.88180796,61401.0,61400.0,0.0084258]
[1724272154531,0.81445,61391.0,61390.0,0.009086]
[1724272154888,0.86329563,61391.0,61390.0,0.009086]
[1724272155179,0.88883706,61391.0,61390.0,0.009086]
[1724272155341,0.56305706,61391.0,61390.0,0.009086]
[1724272155734,0.56705706,61391.0,61390.0,0.009086]
[1724272155936,0.07838706,61391.0,61390.0,0.335186]
[1724272156119,0.07838706,61391.0,61390.0,0.3696232]
[1724272156325,0.19243143,61391.0,61390.0,0.3696232]
[1724272156684,0.03154143,61391.0,61390.0,0.3696232]
[1724272157223,0.19443143,61391.0,61390.0,0.3696232]
[1724272157798,0.19243143,61391.0,61390.0,0.3696232]
[1724272158007,0.19243143,61391.0,61390.0,0.36958012]
[1724272158269,0.18943143,61391.0,61390.0,0.36958012]
[1724272158546,0.03054143,61391.0,61390.0,0.36958012]
[1724272158747,0.04751303,61391.0,61390.0,0.36958012]
[1724272159152,0.04351303,61391.0,61390.0,0.36958012]
[1724272159882,0.04351303,61391.0,61390.0,0.55178012]
[1724272159883,0.04651303,61391.0,61390.0,0.55178012]
[1724272160982,0.0209716,61391.0,61390.0,0.55178012]
[1724272161132,0.0179716,61391.0,61390.0,0.55178012]
[1724272161542,0.0199716,61391.0,61390.0,0.55178012]
[1724272161967,0.0199716,61391.0,61390.0,0.55278012]
[1724272161968,0.0169716,61391.0,61390.0,0.55278012]
[1724272162385,0.04251077,61391.0,61390.0,0.55278012]
[1724272163199,0.04251077,61391.0,61390.0,0.55178012]
[1724272163427,0.04251077,61391.0,61390.0,0.7157831]
[1724272163635,0.04251077,61391.0,61390.0,0.8796751]
[1724272163837,0.04251077,61391.0,61390.0,0.8786751]
[1724272166231,0.04433677,61391.0,61390.0,0.55278012]
[1724272167260,0.20622677,61391.0,61390.0,0.04348012]
[1724272167481,0.85778677,61391.0,61390.0,0.00904292]
[1724272167679,0.53200677,61391.0,61390.0,0.01004292]
[1724272167831,0.20622677,61391.0,61390.0,0.01004292]
[1724272168035,0.04294473,61391.0,61390.0,0.01004292]
[1724272168331,0.20583473,61391.0,61390.0,0.01004292]
[1724272168525,0.04294473,61391.0,61390.0,0.01004292]
[1724272168723,0.20583473,61391.0,61390.0,0.31694292]
[1724272169347,0.20233473,61391.0,61390.0,0.31694292]
[1724272169551,0.20233473,61391.0,61390.0,0.31594292]
[1724272169744,0.20233473,61391.0,61390.0,0.31694292]
[1724272169883,0.20433473,61391.0,61390.0,0.31694292]
[1724272170087,0.20433473,61391.0,61390.0,0.00904292]
[1724272170331,0.85589473,61391.0,61390.0,0.00904292]
[1724272170537,0.20433473,61391.0,61390.0,0.00904292]
[1724272170850,0.04144473,61391.0,61390.0,0.00904292]
[1724272171253,0.53011473,61391.0,61390.0,0.00904292]
[1724272171554,0.50257556,61391.0,61390.0,0.00904292]
[1724272171853,0.18179556,61391.0,61390.0,0.00904292]
[1724272172052,0.01890556,61391.0,61390.0,0.00904292]
[1724272172282,0.01390556,61391.0,61390.0,0.00904292]
[1724272172923,0.18579556,61391.0,61390.0,0.00904292]
[1724272173175,0.51157556,61391.0,61390.0,0.00904292]
[1724272173395,0.50757556,61391.0,61390.0,0.00904292]
[1724272173597,0.02090556,61391.0,61390.0,0.00904292]